bitfinex/quotes_BTCUSD_20250812
["timestamp","ask_amount","ask_price","bid_price","bid_amount"]
[1754968260212,0.08272325,119080.0,119070.0,0.20547107]
[1754968260423,0.00325,119090.0,119080.0,0.16795431]
[1754968260628,0.17957241,119100.0,119090.0,0.16794021]
[1754968260838,0.39275566,119100.0,119090.0,0.16794021]
[1754968261051,1.12483981,119100.0,119090.0,0.16794021]
[1754968261969,0.39275566,119100.0,119090.0,0.16794021]
[1754968262146,0.21643325,119100.0,119090.0,0.17007021]
[1754968262349,0.21112325,119100.0,119090.0,0.17007021]
[1754968262897,0.38654467,119120.0,119110.0,0.16791201]
[1754968262898,0.20489,119120.0,119110.0,0.16791201]
[1754968263168,0.28967325,119120.0,119110.0,0.16791201]
[1754968263334,0.41811325,119120.0,119110.0,0.16791201]
[1754968264006,1.1501974,119120.0,119110.0,0.16791201]
[1754968264213,1.1506867,119120.0,119110.0,0.16791201]
[1754968264410,1.1506867,119120.0,119110.0,0.16991201]
[1754968265901,1.1506867,119120.0,119110.0,0.17391201]
[1754968266121,1.1506867,119120.0,119110.0,0.16891201]
[1754968266483,0.9490467,119120.0,119110.0,0.17291201]
[1754968267024,1.11694461,119120.0,119110.0,0.17291201]
[1754968272143,1.84902876,119120.0,119110.0,0.005]
[1754968275034,1.11694461,119120.0,119110.0,0.005]
[1754968275228,1.11698461,119120.0,119110.0,0.005]
[1754968275691,0.38490046,119120.0,119110.0,0.005]
[1754968275879,1.11698461,119120.0,119110.0,0.005]
[1754968279975,1.11609471,119120.0,119110.0,0.005]
[1754968286271,1.84817886,119120.0,119110.0,0.005]
[1754968288255,1.11609471,119120.0,119110.0,0.005]
[1754968291201,1.84817886,119120.0,119110.0,0.005]
[1754968295416,1.93066329,119120.0,119110.0,0.005]
[1754968295673,1.84817886,119120.0,119110.0,0.005]
[1754968296694,1.84817886,119120.0,119110.0,0.001]
[1754968296896,1.84817886,119120.0,119080.0,0.20157602]
[1754968296897,0.16793844,119100.0,119080.0,0.20157602]
[1754968297102,0.86032415,119090.0,119080.0,0.20457602]
[1754968297316,0.86032415,119090.0,119080.0,0.20658602]
[1754968297958,0.86032415,119090.0,119080.0,0.20858602]
[1754968298652,0.86032415,119090.0,119080.0,0.20658602]
[1754968298896,0.86032415,119090.0,119080.0,0.20958602]
[1754968299926,0.86032415,119090.0,119080.0,0.21358602]
[1754968300236,0.86032415,119090.0,119080.0,0.20958602]
[1754968300451,0.86032415,119090.0,119080.0,0.21558602]
[1754968302529,0.86032415,119090.0,119080.0,0.21258602]
[1754968306080,0.86032415,119090.0,119080.0,0.21564602]
[1754968306841,0.86032415,119090.0,119080.0,0.21258602]
[1754968308043,0.86229415,119090.0,119080.0,0.21258602]
[1754968308254,0.86531415,119090.0,119080.0,0.21258602]
[1754968308652,1.03325436,119090.0,119080.0,0.21057602]
[1754968309358,0.86531415,119090.0,119080.0,0.21057602]
[1754968311653,1.03325436,119090.0,119080.0,0.18535202]
[1754968314881,0.91099963,119090.0,119080.0,0.18535202]
[1754968315085,0.91538378,119090.0,119080.0,0.18535202]
[1754968315628,0.99810703,119090.0,119080.0,0.009]
[1754968315834,1.60793645,119090.0,119080.0,0.009]
[1754968316008,0.99810703,119090.0,119080.0,0.009]
[1754968316719,1.20144796,119090.0,119080.0,0.009]
[1754968320846,0.38827761,119090.0,119080.0,0.009]
[1754968321076,1.20144796,119090.0,119080.0,0.006]
[1754968321913,0.1679636,119080.0,119060.0,0.20160764]
[1754968322112,0.12824,119070.0,119060.0,0.20466764]
[1754968322363,0.12824,119070.0,119060.0,0.20668764]
[1754968323169,0.12824,119070.0,119060.0,0.20683446]
[1754968323386,0.12824,119070.0,119060.0,0.20983446]
[1754968323611,1.19407202,119070.0,119060.0,0.20677446]
[1754968323744,1.19709202,119070.0,119060.0,0.20335534]
[1754968324379,1.19709202,119070.0,119060.0,0.20035534]
[1754968324580,1.19709202,119070.0,119060.0,0.19537534]
[1754968324581,1.0291236,119070.0,119060.0,0.19537534]
[1754968324756,0.21595325,119070.0,119060.0,0.20137534]
[1754968324962,0.38090167,119070.0,119060.0,0.20137534]
[1754968326426,0.38090167,119070.0,119060.0,0.20437534]
[1754968327106,1.19407202,119070.0,119060.0,0.20437534]
[1754968327329,0.38090167,119070.0,119060.0,0.20437534]
[1754968327508,0.38392167,119070.0,119060.0,0.20437534]
[1754968329328,0.21595325,119070.0,119060.0,0.20437534]
[1754968330706,0.38392167,119070.0,119060.0,0.20437534]
[1754968334949,0.21595325,119070.0,119060.0,0.20437534]
[1754968336823,0.82590687,119070.0,119060.0,0.20437534]
[1754968337581,0.99387529,119070.0,119060.0,0.20235534]
[1754968338055,0.82590687,119070.0,119060.0,0.20235534]
[1754968338255,0.99387529,119070.0,119060.0,0.20235534]
[1754968338610,1.00248824,119070.0,119060.0,0.20235534]
[1754968338848,1.00248824,119070.0,119060.0,0.03437282]
[1754968339083,1.00248824,119070.0,119060.0,0.00914682]
[1754968343370,1.00248824,119070.0,119060.0,0.00614682]
[1754968343755,1.00248824,119070.0,119060.0,0.00214682]
[1754968343974,1.00248824,119070.0,119060.0,0.00614682]
[1754968344503,0.99387529,119070.0,119060.0,0.00614682]
[1754968345335,1.0021386,119070.0,119060.0,0.00614682]
[1754968346366,1.0021386,119070.0,119060.0,0.03137782]
[1754968348513,0.39218498,119070.0,119060.0,0.03137782]
[1754968348718,1.0021386,119070.0,119060.0,0.19936034]
[1754968348919,1.0021386,119070.0,119060.0,0.03137782]
[1754968353130,1.61209222,119070.0,119060.0,0.03137782]
[1754968354408,1.0021386,119070.0,119060.0,0.03137782]
[1754968361843,0.39218498,119070.0,119060.0,0.03137782]
[1754968362043,1.0021386,119070.0,119060.0,0.03137782]
[1754968362715,0.99387529,119070.0,119060.0,0.19936034]
[1754968363344,1.61241077,119070.0,119060.0,0.00614682]
[1754968363549,0.99387529,119070.0,119060.0,0.17620934]
[1754968363778,0.99387529,119070.0,119060.0,0.20144034]
[1754968363981,0.25266167,119070.0,119060.0,0.20144034]
[1754968364175,0.16794073,119090.0,119080.0,0.16795431]
[1754968364383,0.9941476,119090.0,119080.0,0.16795431]
[1754968364584,1.002764,119090.0,119080.0,0.16795431]
[1754968364947,0.21302325,119090.0,119080.0,0.17003431]
[1754968365161,0.82087687,119090.0,119080.0,0.17003431]
[1754968365363,0.82087687,119090.0,119080.0,0.19526131]
[1754968365578,0.82087687,119090.0,119080.0,0.19726131]
[1754968365779,0.82297687,119090.0,119080.0,0.19726131]
[1754968367014,0.21302325,119090.0,119080.0,0.19726131]
[1754968367219,0.82297687,119090.0,119080.0,0.19726131]
[1754968367562,0.99414708,119090.0,119080.0,0.19518131]
[1754968370723,1.19729638,119090.0,119080.0,0.19518131]
[1754968373866,1.27978081,119090.0,119080.0,0.027227]
[1754968374071,1.27978081,119090.0,119080.0,0.002]
[1754968374472,1.19729638,119090.0,119080.0,0.002]
[1754968382620,1.2147454,119090.0,119080.0,0.002]
[1754968383023,1.2399764,119090.0,119080.0,0.002]
[1754968385796,1.2147454,119090.0,119080.0,0.002]
[1754968386186,1.2399754,119090.0,119080.0,0.002]
[1754968386811,1.2147454,119090.0,119080.0,0.002]
[1754968387819,1.2399764,119090.0,119080.0,0.002]
[1754968391374,0.42687348,119090.0,119080.0,0.002]
[1754968391587,1.2147454,119090.0,119080.0,0.002]
[1754968391849,0.40164248,119090.0,119080.0,0.002]
[1754968392106,1.2147454,119090.0,119080.0,0.002]
[1754968398106,2.06205803,119090.0,119080.0,0.002]
[1754968398507,2.02784832,119090.0,119080.0,0.002]
[1754968398915,0.16796842,119070.0,119060.0,0.00014682]
[1754968399131,0.38144167,119070.0,119060.0,0.00014682]
[1754968399334,1.19777459,119070.0,119060.0,0.00014682]
[1754968400489,1.19777459,119070.0,119060.0,0.00114682]
[1754968400694,1.19777459,119070.0,119060.0,0.00317682]
[1754968401361,1.19777459,119070.0,119060.0,0.00617682]
[1754968406350,1.19239459,119070.0,119060.0,0.00910682]
[1754968406551,1.19231459,119070.0,119060.0,0.00910682]
[1754968407763,1.19231459,119070.0,119060.0,0.00617682]
[1754968410160,1.19769459,119070.0,119060.0,0.00414682]
[1754968416763,0.38459167,119070.0,119060.0,0.00617682]
[1754968416968,0.98931794,119070.0,119060.0,0.00617682]
[1754968417416,0.98931794,119070.0,119060.0,0.00910682]
[1754968417602,0.98931794,119070.0,119060.0,0.00617682]
[1754968418615,0.99146794,119070.0,119060.0,0.00617682]
[1754968418832,1.19478365,119070.0,119060.0,0.00617682]
[1754968420247,1.19784365,119070.0,119060.0,0.00414682]
[1754968422480,1.19784365,119070.0,119060.0,0.00630682]
[1754968422682,0.37921167,119070.0,119060.0,0.00630682]
[1754968422880,1.19263365,119070.0,119060.0,0.00630682]
[1754968423082,0.08272325,119070.0,119060.0,0.20157934]
[1754968423301,0.21148325,119070.0,119060.0,0.20157934]
[1754968423477,0.21148325,119070.0,119060.0,0.22680834]
[1754968425315,0.37945167,119070.0,119060.0,0.22680834]
[1754968431690,0.21148325,119070.0,119060.0,0.22680834]
[1754968432663,0.08272325,119070.0,119060.0,0.22680834]
[1754968432872,0.21132325,119070.0,119060.0,1.04023032]
[1754968433134,0.1286,119070.0,119060.0,1.04023032]
[1754968434058,0.1286,119070.0,119060.0,0.22680834]
[1754968438132,0.81648198,119090.0,119080.0,0.16795431]
[1754968438330,0.21635325,119090.0,119080.0,0.16795431]
[1754968438882,0.38429346,119090.0,119080.0,0.16795431]
[1754968439448,0.38429346,119090.0,119080.0,0.16895431]
[1754968440266,0.08477325,119090.0,119080.0,0.17111431]
[1754968440533,0.08477325,119090.0,119080.0,0.17429431]
[1754968440534,0.08272325,119090.0,119080.0,0.17429431]
[1754968440712,0.21116325,119090.0,119080.0,0.17429431]
[1754968441561,0.08272325,119090.0,119080.0,0.17429431]
[1754968441767,0.21116325,119090.0,119080.0,0.17329431]
[1754968441962,0.21116325,119090.0,119080.0,0.17529431]
[1754968444180,0.21116325,119090.0,119080.0,0.1835483]
[1754968444647,0.21116325,119090.0,119080.0,0.17529431]
[1754968444802,0.21116325,119090.0,119080.0,0.17329431]
[1754968445175,0.21116325,119090.0,119080.0,0.17529431]
[1754968445753,0.21116325,119090.0,119080.0,0.1836472]
[1754968446073,0.21116325,119090.0,119080.0,0.1816472]
[1754968446272,0.21116325,119090.0,119080.0,0.1846472]
[1754968446477,0.21116325,119090.0,119080.0,0.17729431]
[1754968446686,0.21116325,119090.0,119080.0,0.17411431]
[1754968450373,0.21328325,119090.0,119080.0,0.17411431]
[1754968452604,0.21328325,119090.0,119080.0,0.09817231]
[1754968453079,0.21116325,119090.0,119080.0,0.09817231]
[1754968453252,0.21116325,119090.0,119080.0,0.10136231]
[1754968455390,0.21116325,119090.0,119080.0,0.09817231]
[1754968455970,0.21621325,119090.0,119080.0,0.09817231]
[1754968461573,0.21328325,119090.0,119080.0,0.09817231]
[1754968462838,0.21116325,119090.0,119080.0,0.09817231]
[1754968463699,0.21328325,119090.0,119080.0,0.09817231]
[1754968465287,0.21621325,119090.0,119080.0,0.09817231]
[1754968466743,0.82594532,119090.0,119080.0,0.09817231]
[1754968477760,0.21621325,119090.0,119080.0,0.09817231]
[1754968478003,0.08484325,119090.0,119080.0,0.09817231]
[1754968478272,0.21308325,119090.0,119080.0,0.70790438]
[1754968478477,0.21308325,119090.0,119080.0,0.09817231]
[1754968479309,0.00293,119110.0,119100.0,0.16792611]
[1754968479569,0.82574532,119110.0,119100.0,0.16792611]
[1754968481495,0.82574532,119110.0,119100.0,0.16892611]
[1754968481999,0.82574532,119110.0,119100.0,0.16792611]
[1754968482255,0.82574532,119110.0,119100.0,0.16992611]
[1754968486971,0.21601325,119110.0,119100.0,0.16992611]
[1754968487202,0.82574532,119110.0,119100.0,0.16992611]
[1754968487698,0.69750532,119110.0,119100.0,0.16992611]
[1754968487904,0.82574532,119110.0,119100.0,0.17196611]
[1754968488357,0.21601325,119110.0,119100.0,0.17196611]
[1754968488600,0.82574532,119110.0,119100.0,0.16992611]
[1754968495481,1.6033894,119110.0,119100.0,0.002]
[1754968495907,1.68587383,119110.0,119100.0,0.002]
[1754968496114,1.6033894,119110.0,119100.0,0.002]
[1754968496763,1.19704713,119110.0,119100.0,0.002]
[1754968500434,0.38392526,119110.0,119100.0,0.002]
[1754968500726,1.19704713,119110.0,119100.0,0.002]
[1754968506110,1.21449615,119110.0,119100.0,0.002]
[1754968506452,1.29698058,119110.0,119100.0,0.002]
[1754968506664,0.48385871,119110.0,119100.0,0.002]
[1754968506875,1.29698058,119110.0,119100.0,0.002]
[1754968508741,1.32255781,119110.0,119100.0,0.002]
[1754968515321,1.34778881,119110.0,119100.0,0.002]
[1754968515971,0.16796842,119070.0,119060.0,0.00319]
[1754968516183,1.19201354,119070.0,119060.0,0.00542682]
[1754968516842,1.19201354,119070.0,119060.0,0.17340934]
[1754968517474,1.19201354,119070.0,119060.0,0.00942682]
[1754968517834,1.19201354,119070.0,119060.0,0.01142682]
[1754968519407,1.19201354,119070.0,119060.0,0.00823682]
[1754968519821,1.20053409,119070.0,119060.0,0.00823682]
[1754968520019,1.20017457,119070.0,119060.0,0.00823682]
[1754968520912,1.20233457,119070.0,119060.0,0.00823682]
[1754968521162,1.20533457,119070.0,119060.0,0.00823682]
[1754968521824,1.20233457,119070.0,119060.0,0.00823682]
[1754968523694,1.20017457,119070.0,119060.0,0.00823682]
[1754968527142,1.19165402,119070.0,119060.0,0.00823682]
[1754968527354,1.19165402,119070.0,119060.0,0.01138682]
[1754968528522,1.20021138,119070.0,119060.0,0.01138682]
[1754968528729,1.19165402,119070.0,119060.0,0.17936934]
[1754968529415,1.19165402,119070.0,119060.0,0.01138682]
[1754968530910,1.19165402,119070.0,119060.0,0.00823682]
[1754968531123,1.19381402,119070.0,119060.0,0.00823682]
[1754968531571,1.19681402,119070.0,119060.0,0.00823682]
[1754968532837,0.99374064,119070.0,119060.0,0.00823682]
[1754968533050,0.99374064,119070.0,119060.0,0.00614682]
[1754968541048,0.38369215,119070.0,119060.0,0.00614682]
[1754968541225,0.99374064,119070.0,119060.0,0.00614682]
[1754968542415,0.99374064,119070.0,119060.0,0.00828682]
[1754968544251,0.38369215,119070.0,119060.0,0.00828682]
[1754968544467,0.99374064,119070.0,119060.0,0.00828682]
[1754968544899,0.99374064,119070.0,119060.0,0.17626934]
[1754968546314,0.99374064,119070.0,119060.0,0.00828682]
[1754968549153,0.99374064,119070.0,119060.0,0.00614682]
[1754968557634,0.99374064,119070.0,119060.0,0.17412934]
[1754968558165,0.38369215,119070.0,119060.0,0.17412934]
[1754968558400,0.99374064,119070.0,119060.0,0.17412934]
[1754968562736,0.38369215,119070.0,119060.0,0.17412934]
[1754968562939,0.99374064,119070.0,119060.0,0.17412934]
[1754968563885,0.21092325,119070.0,119060.0,0.17936934]
[1754968564061,0.21092325,119070.0,119060.0,0.78941783]
[1754968564693,0.21092325,119070.0,119060.0,0.17936934]
[1754968564906,0.37889167,119070.0,119060.0,0.17626934]
[1754968565130,0.98894016,119070.0,119060.0,0.17626934]
[1754968565334,0.99097016,119070.0,119060.0,0.17626934]
[1754968565953,0.38092167,119070.0,119060.0,0.17626934]
[1754968568541,0.21092325,119070.0,119060.0,0.17626934]
[1754968568757,0.21092325,119070.0,119060.0,0.17936934]
[1754968568956,0.21092325,119070.0,119060.0,0.78941783]
[1754968569616,0.1282,119070.0,119060.0,1.42314632]
[1754968569802,0.1793604,119090.0,119080.0,0.16795431]
[1754968570041,0.38931365,119090.0,119080.0,0.16999431]
[1754968570249,0.38728365,119090.0,119080.0,0.16999431]
[1754968570911,0.16792611,119100.0,119090.0,0.16794021]
[1754968571127,0.37884936,119100.0,119090.0,0.7779887]
[1754968571339,0.21092325,119100.0,119090.0,0.16998021]
[1754968571525,0.82302174,119100.0,119090.0,0.16998021]
[1754968571760,0.21614325,119100.0,119090.0,0.16998021]
[1754968571968,0.21614325,119100.0,119090.0,0.00204]
[1754968571969,0.99411785,119100.0,119090.0,0.00204]
[1754968572393,0.99411785,119100.0,119090.0,0.00404]
[1754968572806,0.38406936,119100.0,119090.0,0.00404]
[1754968573184,0.38406936,119100.0,119090.0,0.00704]
[1754968573816,0.38406936,119100.0,119090.0,0.00804]
[1754968575144,1.19696753,119100.0,119090.0,0.006]
[1754968578262,0.38406936,119100.0,119090.0,0.006]
[1754968578473,1.19696753,119100.0,119090.0,0.006]
[1754968580539,0.38406936,119100.0,119090.0,0.006]
[1754968581866,0.38085936,119100.0,119090.0,0.17598021]
[1754968582069,0.37880936,119100.0,119090.0,0.17598021]
[1754968585582,0.38319633,119100.0,119090.0,0.17598021]
[1754968587879,0.21527022,119100.0,119090.0,0.17598021]
[1754968588092,0.21527022,119100.0,119090.0,0.17904021]
[1754968588788,0.21527022,119100.0,119090.0,0.17598021]
[1754968590310,0.38319633,119100.0,119090.0,0.17598021]
[1754968590516,0.38841633,119100.0,119090.0,0.17598021]
[1754968592255,0.00438697,119100.0,119090.0,0.17462408]
[1754968592460,0.13250697,119100.0,119090.0,1.11058225]
[1754968596401,0.13250697,119100.0,119090.0,0.29768408]
[1754968598585,0.00438697,119100.0,119090.0,1.11058225]
[1754968598854,0.13250697,119100.0,119090.0,1.11058225]
[1754968599274,0.12812,119100.0,119090.0,1.11058225]
[1754968606824,0.12812,119100.0,119090.0,1.10752225]
[1754968607635,0.12812,119100.0,119090.0,0.29462408]
[1754968608503,0.13027,119100.0,119090.0,0.29462408]
[1754968608707,0.13335,119100.0,119090.0,0.29462408]
[1754968613143,0.00523,119100.0,119090.0,0.29462408]
[1754968613317,0.13331,119100.0,119090.0,0.29462408]
[1754968614825,0.13769678,119100.0,119090.0,0.29462408]
[1754968616361,0.00961678,119100.0,119090.0,0.29462408]
[1754968616570,0.13769678,119100.0,119090.0,0.29462408]
[1754968616784,0.13769678,119100.0,119090.0,0.90423755]
[1754968616981,0.00961678,119100.0,119090.0,0.90423755]
[1754968617185,0.13769678,119100.0,119090.0,0.90423755]
[1754968618466,0.13331,119100.0,119090.0,0.29462408]
[1754968618668,0.13331,119100.0,119090.0,0.90423755]
[1754968619645,0.13331,119100.0,119090.0,0.29258408]
[1754968619867,2.21279977,119100.0,119090.0,0.00464387]
[1754968620077,2.23802677,119100.0,119090.0,0.00464387]
[1754968620757,4.0843162,119100.0,119090.0,0.00464387]
[1754968620986,4.0843162,119100.0,119090.0,0.00364387]
[1754968620987,4.10905366,119100.0,119090.0,0.00364387]
[1754968621215,2.36269768,119100.0,119090.0,0.00364387]
[1754968621684,0.16796842,119070.0,119060.0,0.00014682]
[1754968621901,0.99053514,119070.0,119060.0,0.00014682]
[1754968622118,0.99361514,119070.0,119060.0,0.00014682]
[1754968622783,1.19747,119070.0,119060.0,0.00014682]
[1754968623722,1.19747,119070.0,119060.0,0.00114682]
[1754968623929,1.2948252,119070.0,119060.0,0.00114682]
[1754968624161,1.2650804,119070.0,119060.0,0.00114682]
[1754968624339,1.29855869,119070.0,119060.0,0.00114682]
[1754968624742,1.23094829,119070.0,119060.0,0.00314682]
[1754968624946,1.23094829,119070.0,119060.0,0.00014682]
[1754968625377,1.23094829,119070.0,119060.0,0.00114682]
[1754968625612,1.24839731,119070.0,119060.0,0.00114682]
[1754968625797,1.33088174,119070.0,119060.0,0.00114682]
[1754968626443,1.24839731,119070.0,119060.0,0.00114682]
[1754968628835,1.20571429,119070.0,119060.0,0.00114682]
[1754968630752,0.08487325,119070.0,119060.0,0.17108934]
[1754968630956,0.08487325,119070.0,119060.0,0.98748767]
[1754968630957,0.08272325,119070.0,119060.0,0.98748767]
[1754968631137,0.21080325,119070.0,119060.0,0.19880934]
[1754968633152,0.37877167,119070.0,119060.0,0.19880934]
[1754968633381,1.1975,119070.0,119060.0,0.00114682]
[1754968640173,1.21494902,119070.0,119060.0,0.00114682]
[1754968641170,1.21494902,119070.0,119060.0,0.00014682]
[1754968641390,1.24018602,119070.0,119060.0,0.00014682]
[1754968646627,0.42671769,119070.0,119060.0,0.00014682]
[1754968646841,1.24018602,119070.0,119060.0,0.00014682]
[1754968652833,1.24066602,119070.0,119060.0,0.00014682]
[1754968653043,0.25069167,119070.0,119060.0,0.00210682]
[1754968653249,1.19272,119070.0,119060.0,0.00503682]
[1754968653468,1.19272,119070.0,119060.0,0.02982682]
[1754968653680,1.19272,119070.0,119060.0,0.19780934]
[1754968654091,1.02475158,119070.0,119060.0,0.19780934]
[1754968655665,1.19272,119070.0,119060.0,0.19780934]
[1754968656750,1.19272,119070.0,119060.0,0.19487934]
[1754968656962,1.02475158,119070.0,119060.0,0.19780934]
[1754968659486,1.19272,119070.0,119060.0,0.02689682]
[1754968659689,1.19474,119070.0,119060.0,0.00210682]
[1754968659894,1.19781,119070.0,119060.0,0.00210682]
[1754968662703,1.19781,119070.0,119060.0,0.00014682]
[1754968673815,1.22663208,119070.0,119060.0,0.00014682]
[1754968674022,1.21525902,119070.0,119060.0,0.00014682]
[1754968678796,1.24049402,119070.0,119060.0,0.00014682]
[1754968684822,1.24488223,119070.0,119060.0,0.00014682]
[1754968697046,0.4283439,119070.0,119060.0,0.00224682]
[1754968697288,1.24181223,119070.0,119060.0,0.00224682]
[1754968697492,1.24476223,119070.0,119060.0,0.00224682]
[1754968698535,1.29520223,119070.0,119060.0,0.00224682]
[1754968698706,1.24476223,119070.0,119060.0,0.00224682]
[1754968699168,1.23979223,119070.0,119060.0,0.00224682]
[1754968699377,1.19710821,119070.0,119060.0,0.03026682]
[1754968700956,1.19916821,119070.0,119060.0,0.02703682]
[1754968701162,1.23918925,119070.0,119060.0,0.02703682]
[1754968701596,1.19916821,119070.0,119060.0,0.02703682]
[1754968703204,1.20505233,119070.0,119060.0,0.02703682]
[1754968703627,1.20800233,119070.0,119060.0,0.00224682]
[1754968703813,1.20800233,119070.0,119060.0,0.00014682]
[1754968704534,1.20800233,119070.0,119060.0,0.00224682]
[1754968705508,1.21320887,119070.0,119060.0,0.00224682]
[1754968705723,1.21909579,119070.0,119060.0,0.00224682]
[1754968705945,1.20800513,119070.0,119060.0,0.00224682]
[1754968706366,1.20211821,119070.0,119060.0,0.00224682]
[1754968713902,1.20211821,119070.0,119060.0,0.00014682]
[1754968719063,1.22545294,119070.0,119060.0,0.00014682]
[1754968719489,1.25068994,119070.0,119060.0,0.00014682]
[1754968721632,1.33317437,119070.0,119060.0,0.00014682]
[1754968722619,1.25068994,119070.0,119060.0,0.00014682]
[1754968723797,1.24480423,119070.0,119060.0,0.00014682]
[1754968724007,1.2506902,119070.0,119060.0,0.00014682]
[1754968726621,1.26638476,119070.0,119060.0,0.00014682]
[1754968726824,1.28446549,119070.0,119060.0,0.00014682]
[1754968727031,1.29231269,119070.0,119060.0,0.00014682]
[1754968727670,1.29191269,119070.0,119060.0,0.00014682]
[1754968728087,1.37439712,119070.0,119060.0,0.00014682]
[1754968728699,1.29191269,119070.0,119060.0,0.00014682]
[1754968729118,1.49363269,119070.0,119060.0,0.00014682]
[1754968729327,1.48924448,119070.0,119060.0,0.00014682]
[1754968729527,1.48924448,119070.0,119060.0,1e-08]
[1754968729528,2.30271281,119070.0,119060.0,1e-08]
[1754968729748,2.38519724,119070.0,119060.0,1e-08]
[1754968730381,7.38519724,119070.0,119060.0,1e-08]
[1754968730584,7.40778472,119070.0,119060.0,1e-08]
[1754968731721,7.4389353,119070.0,119060.0,1e-08]
[1754968732304,7.4409353,119070.0,119060.0,1e-08]
[1754968732502,7.40978472,119070.0,119060.0,1e-08]
[1754968732894,7.3970515,119070.0,119060.0,1e-08]
[1754968733095,7.46325955,119070.0,119060.0,1e-08]
[1754968733553,7.46325669,119070.0,119060.0,1e-08]
[1754968734185,7.49340727,119070.0,119060.0,1e-08]
[1754968734396,7.46325669,119070.0,119060.0,1e-08]
[1754968734936,7.48823867,119070.0,119060.0,1e-08]
[1754968735153,7.49580177,119070.0,119060.0,1e-08]
[1754968735373,7.54099415,119070.0,119060.0,1e-08]
[1754968735596,8.09180177,119070.0,119060.0,1e-08]
[1754968735889,8.13699415,119070.0,119060.0,1e-08]
[1754968736115,8.1369858,119070.0,119060.0,1e-08]
[1754968736534,8.09079342,119070.0,119060.0,1e-08]
[1754968736961,8.09179342,119070.0,119060.0,1e-08]
[1754968738020,8.08979342,119070.0,119060.0,1e-08]
[1754968738229,7.64379342,119070.0,119060.0,1e-08]
[1754968739033,7.64679342,119070.0,119060.0,1e-08]
[1754968739242,0.1680531,119010.0,119000.0,0.0492137]
[1754968739463,1.19336468,119010.0,119000.0,0.05449987]
[1754968741238,1.21820204,119010.0,119000.0,0.07785987]
[1754968741425,1.22746989,119010.0,119000.0,0.07785987]
[1754968741842,0.41400156,119010.0,119000.0,0.08385987]
[1754968742010,1.22746989,119010.0,119000.0,0.08385987]
[1754968742663,0.28400156,119010.0,119000.0,0.08385987]
[1754968742836,1.22754989,119010.0,119000.0,0.08385987]
[1754968743698,0.41408156,119010.0,119000.0,0.08385987]
[1754968743898,1.22754989,119010.0,119000.0,0.08385987]
[1754968744043,0.41408156,119010.0,119000.0,0.08385987]
[1754968744297,1.24206571,119010.0,119000.0,0.08385987]
[1754968744705,1.22754989,119010.0,119000.0,0.08385987]
[1754968745818,0.25077635,119010.0,119000.0,0.08385987]
[1754968746036,0.08272325,119010.0,119000.0,0.25192709]
[1754968746249,0.38121635,119010.0,119000.0,1.06539542]
[1754968746458,0.38121635,119010.0,119000.0,0.25192709]
[1754968746952,0.21316325,119010.0,119000.0,0.25192709]
[1754968747426,0.38121635,119010.0,119000.0,0.25192709]
[1754968749055,0.38121635,119010.0,119000.0,0.08385987]
[1754968750912,1.27716911,119010.0,119000.0,0.08385987]
[1754968751131,1.27716911,119010.0,119000.0,0.08077987]
[1754968751337,0.46370078,119010.0,119000.0,0.08077987]
[1754968751536,1.27716911,119010.0,119000.0,0.08077987]
[1754968753450,1.19468468,119010.0,119000.0,0.08077987]
[1754968753853,1.19670468,119010.0,119000.0,0.08077987]
[1754968754404,1.19979468,119010.0,119000.0,0.05535987]
[1754968755204,1.19979468,119010.0,119000.0,0.05142987]
[1754968755350,1.19979468,119010.0,119000.0,0.05442987]
[1754968755779,1.19670468,119010.0,119000.0,0.05142987]
[1754968755974,1.19670468,119010.0,119000.0,0.05542987]
[1754968757093,1.19468468,119010.0,119000.0,0.05542987]
[1754968757296,1.19468468,119010.0,119000.0,0.05442987]
[1754968757507,1.19468468,119010.0,119000.0,0.05542987]
[1754968758796,1.19670468,119010.0,119000.0,0.05542987]
[1754968759818,1.19979468,119010.0,119000.0,0.05542987]
[1754968762556,1.21783289,119010.0,119000.0,0.05542987]
[1754968763327,1.23936567,119010.0,119000.0,0.05542987]
[1754968763956,0.42589734,119010.0,119000.0,0.05542987]
[1754968764165,1.23936567,119010.0,119000.0,0.05542987]
[1754968765375,1.23349315,119010.0,119000.0,0.05542987]
[1754968765575,1.23936656,119010.0,119000.0,0.05542987]
[1754968766816,1.06424468,119010.0,119000.0,0.05848987]
[1754968766988,1.19436468,119010.0,119000.0,0.05848987]
[1754968767850,0.38089635,119010.0,119000.0,0.05848987]
[1754968768046,1.19436468,119010.0,119000.0,0.05848987]
[1754968769499,0.38089635,119010.0,119000.0,0.05848987]
[1754968769701,1.19436468,119010.0,119000.0,0.05848987]
[1754968769915,0.38081635,119010.0,119000.0,0.05848987]
[1754968770425,0.38081635,119010.0,119000.0,0.25068709]
[1754968774356,1.19428468,119010.0,119000.0,0.25068709]
[1754968774951,0.38081635,119010.0,119000.0,0.25068709]
[1754968775159,1.19428468,119010.0,119000.0,0.25068709]
[1754968775686,0.38081635,119010.0,119000.0,0.25068709]
[1754968776828,0.38077635,119010.0,119000.0,0.25068709]
[1754968777149,0.21272325,119010.0,119000.0,0.25068709]
[1754968777381,0.38077635,119010.0,119000.0,0.25068709]
[1754968777938,0.08272325,119010.0,119000.0,1.06415542]
[1754968778144,0.21272325,119010.0,119000.0,1.06415542]
[1754968778504,0.21272325,119010.0,119000.0,0.25068709]
[1754968781147,0.21276325,119010.0,119000.0,0.25068709]
[1754968782235,0.13004,119010.0,119000.0,1.06415542]
[1754968782536,0.13004,119010.0,119000.0,0.25068709]
[1754968784802,1.19949468,119010.0,119000.0,0.22349709]
[1754968785331,0.21797325,119010.0,119000.0,0.22349709]
[1754968785480,0.21475325,119010.0,119000.0,0.22349709]
[1754968787547,0.21276325,119010.0,119000.0,0.22349709]
[1754968787968,0.08272325,119010.0,119000.0,0.22644709]
[1754968788180,0.21268325,119010.0,119000.0,0.22644709]
[1754968788874,0.18792782,119030.0,119020.0,0.16803898]
[1754968789096,0.40057107,119030.0,119020.0,0.17007898]
[1754968789302,0.40256107,119030.0,119020.0,0.17007898]
[1754968789708,0.40256107,119030.0,119020.0,0.16803898]
[1754968789834,1.2160294,119030.0,119020.0,0.16803898]
[1754968790037,1.2170294,119030.0,119020.0,0.16803898]
[1754968791454,1.2170294,119030.0,119010.0,0.1680412]
[1754968792169,1.0871094,119030.0,119010.0,0.1680412]
[1754968792390,0.12988,119020.0,119010.0,0.1680412]
[1754968792580,0.12988,119020.0,119010.0,0.1700812]
[1754968793178,0.12988,119020.0,119010.0,0.1730312]
[1754968794255,0.08594325,119030.0,119020.0,0.16803898]
[1754968794458,0.21781325,119030.0,119020.0,0.17007898]
[1754968795099,0.38583811,119030.0,119020.0,0.17007898]
[1754968795527,0.38683811,119030.0,119020.0,0.17007898]
[1754968796648,0.38162811,119030.0,119020.0,0.17007898]
[1754968796850,0.38162811,119030.0,119020.0,0.17302898]